[Event "WWRR IM 2019"]
[Site "Wachtebeke"]
[Date "2019.03.05"]
[Round "6.4"]
[White "Huynh, Laurent"]
[Black "De Rover, Yong Hoon"]
[Result "0-1"]
[ECO "B90"]
[WhiteElo "2138"]
[BlackElo "2422"]
[Annotator "ChessBase"]
[PlyCount "72"]
[EventDate "2019.03.02"]
[EventCountry "BEL"]
[SourceTitle "playchess.com"]
[Source "ChessBase"]
[SourceQuality "1"]
[TimeControl "40/5400+30:900+30"]

1. e4 {[%emt 0:00:00]} c5 {[%emt 0:00:45]} 2. Nf3 {[%emt 0:00:00]} d6 {[%emt 0:00:17]} 3. d4 {[%emt 0:00:39]} cxd4 {[%emt 0:00:10]} 4. Nxd4 {[%emt 0:00:25]} Nf6 {[%emt 0:00:11]} 5. Nc3 {[%emt 0:00:13]} a6 {[%emt 0:00:23]} 6. h3 {[%emt 0:00:29]} e5 {[%emt 0:00:14]} 7. Nde2 {[%emt 0:00:06]} h5 {[%emt 0:00:15]} 8. Bg5 {[%emt 0:00:19]} Be6 {[%emt 0:00:33]} 9. Bxf6 {[%emt 0:00:40]} Qxf6 {[%emt 0:00:10]} 10. Nd5 {[%emt 0:00:12]} Qd8 {[%emt 0:00:10]} 11. Nec3 {[%emt 0:02:15]} Nd7 {[%emt 0:00:10]} 12. Bc4 {[%emt 0:07:15]} Rc8 {[%emt 0:03:57]} 13. Bb3 {[%emt 0:00:18]} Nc5 {[%emt 0:01:01]} 14. O-O {[%emt 0:04:00]} g5 {[%emt 0:06:56]} 15. f3 {[%emt 0:16:55]} Bg7 {[%emt 0:03:48]} 16. g4 {[%emt 0:01:44]} b5 {[%emt 0:02:13]} 17. Kg2 {[%emt 0:00:54]} Kf8 {[%emt 0:03:53]} 18. Ne3 {[%emt 0:01:17]} b4 {[%emt 0:00:42]} 19. Ncd5 {[%emt 0:01:20]} a5 {[%emt 0:02:53]} 20. a3 {[%emt 0:00:51]} bxa3 {[%emt 0:01:30]} 21. Rxa3 {[%emt 0:00:28]} Bd7 {[%emt 0:00:24]} 22. Qe2 {[%emt 0:02:43]} a4 {[%emt 0:01:10]} 23. Bc4 {[%emt 0:00:18]} Ne6 {[%emt 0:01:00]} 24. Qd3 {[%emt 0:07:06]} Nf4+ {[%emt 0:15:56]} 25. Nxf4 {[%emt 0:00:07]} gxf4 {[%emt 0:00:06]} 26. Nf5 {[%emt 0:01:23]} Bxf5 {[%emt 0:01:47]} 27. gxf5 {[%emt 0:00:37]} Qh4 {[%emt 0:08:24]} 28. Rf2 {[%emt 0:03:10]} Bf6 {[%emt 0:01:41]} 29. Kf1 {[%emt 0:02:40]} Rg8 {[%emt 0:16:30]} 30. Rxa4 {[%emt 0:03:37]} Qxh3+ {[%emt 0:01:27]} 31. Ke2 {[%emt 0:00:10]} Rg2 {[%emt 0:00:22]} 32. Qxd6+ {[%emt 0:02:46]} Kg7 {[%emt 0:00:34]} 33. Qb6 {[%emt 0:01:28]} Bh4 {[%emt 0:01:00]} 34. Rxg2+ {[%emt 0:03:01]} Qxg2+ {[%emt 0:00:09]} 35. Kd1 {[%emt 0:02:15]} Rxc4 {[%emt 0:01:12]} 36. Rxc4 {[%emt 0:00:47]} Qf1+ {[%emt 0:00:08]} 0-1

[Event "WWRR IM 2019"]
[Site "Wachtebeke"]
[Date "2019.03.05"]
[Round "6.5"]
[White "Vuelban, Virgilio"]
[Black "Blom, Vincent"]
[Result "1/2-1/2"]
[ECO "B12"]
[WhiteElo "2272"]
[BlackElo "2265"]
[Annotator "ChessBase"]
[PlyCount "97"]
[EventDate "2019.03.02"]
[EventCountry "BEL"]
[SourceTitle "playchess.com"]
[Source "ChessBase"]
[SourceQuality "1"]
[TimeControl "40/5400+30:900+30"]

1. e4 {[%emt 0:09:00]} c6 {[%emt 0:00:00]} 2. d4 {[%emt 0:00:05]} d5 {[%emt 0:00:00]} 3. e5 {[%emt 0:00:05]} Bf5 {[%emt 0:00:57]} 4. h4 {[%emt 0:00:06]} h5 {[%emt 0:00:20]} 5. c4 {[%emt 0:00:18]} dxc4 {[%emt 0:05:20]} 6. Bxc4 {[%emt 0:00:08]} e6 {[%emt 0:00:07]} 7. Nc3 {[%emt 0:00:24]} Nd7 {[%emt 0:05:50]} 8. Nge2 {[%emt 0:01:35]} Nb6 {[%emt 0:09:03]} 9. Bb3 {[%emt 0:00:51]} Ne7 {[%emt 0:07:39]} 10. Bg5 {[%emt 0:05:44]} Qd7 {[%emt 0:07:18]} 11. Qd2 {[%emt 0:07:16]} Ned5 {[%emt 0:15:31]} 12. O-O {[%emt 0:04:38]} Be7 {[%emt 0:11:06]} 13. Ng3 {[%emt 0:00:59]} Bg6 {[%emt 0:04:32]} 14. Nce4 {[%emt 0:01:41]} Bxe4 {[%emt 0:08:48]} 15. Nxe4 {[%emt 0:00:14]} f6 {[%emt 0:00:10]} 16. Nc5 {[%emt 0:02:31]} Bxc5 {[%emt 0:01:42]} 17. dxc5 {[%emt 0:00:25]} fxg5 {[%emt 0:00:52]} 18. cxb6 {[%emt 0:00:06]} gxh4 {[%emt 0:00:45]} 19. bxa7 {[%emt 0:01:20]} O-O {[%emt 0:06:00]} 20. Qg5 {[%emt 0:19:19]} Rf5 {[%emt 0:01:18]} 21. Qxh4 {[%emt 0:00:05]} Qf7 {[%emt 0:04:22]} 22. Bxd5 {[%emt 0:05:35]} cxd5 {[%emt 0:00:05]} 23. Qd4 {[%emt 0:00:04]} b5 {[%emt 0:03:45]} 24. Qb6 {[%emt 0:01:20]} Rxa7 {[%emt 0:00:20]} 25. Rac1 {[%emt 0:06:21]} Kh7 {[%emt 0:00:43]} 26. Qxb5 {[%emt 0:02:32]} Rxa2 {[%emt 0:01:06]} 27. Rc8 {[%emt 0:09:50]} Ra7 {[%emt 0:01:40]} 28. Qb8 {[%emt 0:02:35]} Rb7 {[%emt 0:01:01]} 29. Rh8+ {[%emt 0:00:37]} Kg6 {[%emt 0:00:03]} 30. Qd6 {[%emt 0:00:11]} Rxb2 {[%emt 0:02:09]} 31. Qa3 {[%emt 0:00:17]} Qb7 {[%emt 0:00:38]} 32. Qg3+ {[%emt 0:01:06]} Kf7 {[%emt 0:00:28]} 33. Qa3 {[%emt 0:05:47]} Rb4 {[%emt 0:01:30]} 34. Ra8 {[%emt 0:02:42]} Kg6 {[%emt 0:00:37]} 35. Ra7 {[%emt 0:00:21]} Qb8 {[%emt 0:00:33]} 36. Re7 {[%emt 0:03:31]} Qb6 {[%emt 0:01:03]} 37. Qa8 {[%emt 0:01:08]} Kh7 {[%emt 0:00:33]} 38. Re8 {[%emt 0:00:38]} Rxf2 {[%emt 0:00:28]} 39. Rh8+ {[%emt 0:06:47]} Kg6 {[%emt 0:00:04]} 40. Qe8+ {[%emt 0:00:51]} Rf7+ {[%emt 0:00:29]} 41. Kh2 {[%emt 0:15:03]} Rh4+ {[%emt 0:13:50]} 42. Kg3 {[%emt 0:00:00]} Qe3+ {[%emt 0:00:35]} 43. Kxh4 {[%emt 0:00:00]} Qe4+ {[%emt 0:01:09]} 44. Kh3 {[%emt 0:00:00]} Qg4+ {[%emt 0:00:13]} 45. Kh2 {[%emt 0:00:00]} Qh4+ {[%emt 0:00:09]} 46. Kg1 {[%emt 0:00:00]} Qd4+ {[%emt 0:00:08]} 47. Kh1 {[%emt 0:00:00]} Qh4+ {[%emt 0:00:16]} 48. Kg1 {[%emt 0:00:00]} Qd4+ {[%emt 0:00:07]} 49. Kh1 {[%emt 0:00:00]} 1/2-1/2

[Event "WWRR IM 2019"]
[Site "Wachtebeke"]
[Date "2019.03.07"]
[Round "9.2"]
[White "Beukema, Jasper"]
[Black "Blom, Vincent"]
[Result "0-1"]
[ECO "B13"]
[WhiteElo "2282"]
[BlackElo "2265"]
[Annotator "ChessBase"]
[PlyCount "68"]
[EventDate "2019.03.02"]
[EventCountry "BEL"]
[SourceTitle "playchess.com"]
[Source "ChessBase"]
[SourceQuality "1"]
[TimeControl "40/5400+30:900+30"]

1. e4 {[%emt 0:05:53]} c6 {[%emt 0:01:06]} 2. d4 {[%emt 0:00:35]} d5 {[%emt 0:00:06]} 3. exd5 {[%emt 0:00:07]} cxd5 {[%emt 0:00:07]} 4. Bf4 {[%emt 0:00:04]} Nf6 {[%emt 0:04:56]} 5. c3 {[%emt 0:00:53]} Nc6 {[%emt 0:04:24]} 6. Bd3 {[%emt 0:00:15]} Bg4 {[%emt 0:04:21]} 7. Qb3 {[%emt 0:00:07]} Qd7 {[%emt 0:01:24]} 8. Nd2 {[%emt 0:00:08]} e6 {[%emt 0:06:53]} 9. Ngf3 {[%emt 0:00:11]} Bxf3 {[%emt 0:06:41]} 10. Nxf3 {[%emt 0:00:19]} Bd6 {[%emt 0:04:25]} 11. Bxd6 {[%emt 0:01:08]} Qxd6 {[%emt 0:00:15]} 12. Qxb7 {[%emt 0:00:12]} Rb8 {[%emt 0:01:19]} 13. Qa6 {[%emt 0:00:10]} O-O {[%emt 0:03:29]} 14. Rb1 {[%emt 0:11:46]} Rb6 {[%emt 0:05:58]} 15. Qa4 {[%emt 0:00:49]} Rfb8 {[%emt 0:09:12]} 16. Qc2 {[%emt 0:00:18]} e5 {[%emt 0:00:12]} 17. dxe5 {[%emt 0:01:36]} Nxe5 {[%emt 0:02:55]} 18. Nxe5 {[%emt 0:01:33]} Qxe5+ {[%emt 0:00:07]} 19. Kf1 {[%emt 0:00:04]} Ne4 {[%emt 0:18:31]} 20. f3 {[%emt 0:13:55]} Qf4 {[%emt 0:02:07]} 21. Bxe4 {[%emt 0:06:57]} dxe4 {[%emt 0:00:11]} 22. Kf2 {[%emt 0:00:15]} e3+ {[%emt 0:09:49]} 23. Ke2 {[%emt 0:05:07]} Qc4+ {[%emt 0:01:20]} 24. Kxe3 {[%emt 0:04:24]} Re6+ {[%emt 0:02:33]} 25. Kf2 {[%emt 0:00:12]} Rbe8 {[%emt 0:00:08]} 26. Qf5 {[%emt 0:02:10]} Qe2+ {[%emt 0:02:11]} 27. Kg1 {[%emt 0:00:11]} Qe3+ {[%emt 0:01:29]} 28. Kf1 {[%emt 0:00:10]} Qe2+ {[%emt 0:00:05]} 29. Kg1 {[%emt 0:00:05]} Rg6 {[%emt 0:00:36]} 30. Qh3 {[%emt 0:02:05]} Qe3+ {[%emt 0:00:13]} 31. Kf1 {[%emt 0:00:08]} Qd3+ {[%emt 0:00:05]} 32. Kf2 {[%emt 0:00:05]} Re2+ {[%emt 0:00:30]} 33. Kf1 {[%emt 0:00:05]} Rxb2+ {[%emt 0:00:08]} 34. Kg1 {[%emt 0:00:05]} Qxb1# {[%emt 0:00:04]} 0-1

[Event "WWRR IM 2019"]
[Site "Wachtebeke"]
[Date "2019.03.07"]
[Round "9.3"]
[White "Hautot, Stephane"]
[Black "Vuelban, Virgilio"]
[Result "1/2-1/2"]
[ECO "E06"]
[WhiteElo "2347"]
[BlackElo "2272"]
[Annotator "NA"]
[PlyCount "22"]
[EventDate "2019.03.02"]
[EventCountry "BEL"]
[SourceTitle "playchess.com"]
[Source "ChessBase"]
[SourceQuality "1"]
[TimeControl "40/5400+30:900+30"]

1. d4 {[%emt 0:17:04]} d5 {[%emt 0:00:00]} 2. Nf3 {[%emt 0:00:10]} Nf6 {[%emt 0:00:05]} 3. g3 {[%emt 0:00:06]} e6 {[%emt 0:00:42]} 4. Bg2 {[%emt 0:00:11]} Be7 {[%emt 0:00:08]} 5. O-O {[%emt 0:00:08]} O-O {[%emt 0:00:16]} 6. c4 {[%emt 0:00:10]} dxc4 {[%emt 0:00:25]} 7. Ne5 {[%emt 0:00:52]} c5 {[%emt 0:01:36]} 8. dxc5 {[%emt 0:00:30]} Bxc5 {[%emt 0:00:40]} 9. Qxd8 {[%emt 0:02:00]} Rxd8 {[%emt 0:00:07]} 10. Nc3 {[%emt 0:00:36]} Nc6 {[%emt 0:02:21]} 11. Nxc4 {[%emt 0:02:12]} Bd7 {[%emt 1:29:10]} 1/2-1/2

[Event "WWRR IM 2019"]
[Site "Wachtebeke"]
[Date "2019.03.07"]
[Round "9.4"]
[White "Dardha, Daniel"]
[Black "Huynh, Laurent"]
[Result "1-0"]
[ECO "E20"]
[WhiteElo "2369"]
[BlackElo "2138"]
[Annotator "NA"]
[PlyCount "71"]
[EventDate "2019.03.02"]
[EventCountry "BEL"]
[SourceTitle "playchess.com"]
[Source "ChessBase"]
[SourceQuality "1"]
[TimeControl "40/5400+30:900+30"]

1. d4 {[%emt 0:00:00]} Nf6 {[%emt 0:03:47]} 2. c4 {[%emt 0:00:00]} e6 {[%emt 0:00:04]} 3. g3 {[%emt 0:00:00]} d5 {[%emt 0:01:03]} 4. Nf3 {[%emt 0:00:00]} Bb4+ {[%emt 0:01:41]} 5. Nc3 {[%emt 0:00:00]} O-O {[%emt 0:00:19]} 6. Bg2 {[%emt 0:00:03]} Nbd7 {[%emt 0:00:19]} 7. O-O {[%emt 0:00:09] E20: Nimzo-Indian: 4 g3 and 4 f3} (7. Qb3 c5 8. O-O cxd4 9. Qxb4 a5 10. Qa3 dxc3 11. Qxc3 b6 12. cxd5 Nxd5 13. Qd2 Nc5 14. b3 Ba6 {½-½ (78) Fridman,D (2633)-Yu,Y (2764) St Petersburg 2018}) 7... c6 {[%emt 0:00:38]} 8. Qc2 {[%emt 0:04:03]} b6 {[%emt 0:10:11]} 9. a3 {[%emt 0:00:39]} Bxc3 {[%emt 0:01:19]} 10. Qxc3 {[%emt 0:00:06]} Ne4 {[%emt 0:01:20]} 11. Qc2 {[%emt 0:00:18]} Ba6 {[%emt 0:00:19]} 12. b3 {[%emt 0:00:37]} Rc8 {[%emt 0:04:25]} 13. Ne5 $146 {[%emt 0:18:26]} ({Predecessor:} 13. Rd1) 13... Nxe5 {[%emt 0:07:26]} 14. dxe5 {[%emt 0:00:06]} Nc5 {[%emt 0:00:54]} 15. Rd1 {[%emt 0:09:29]} f5 {[%emt 0:06:56]} 16. exf6 {[%emt 0:02:20]} Qxf6 {[%emt 0:01:14]} 17. Be3 {[%emt 0:00:23]} Nxb3 {[%emt 0:10:17]} 18. Qxb3 {[%emt 0:00:23]} Bxc4 {[%emt 0:00:06]} 19. Qc2 {[%emt 0:01:14]} c5 {[%emt 0:00:49]} 20. f4 {[%emt 0:03:48]} b5 {[%emt 0:02:22]} 21. Bf2 {[%emt 0:01:25]} Rfd8 {[%emt 0:03:04]} 22. Rab1 {[%emt 0:05:55]} Rd7 {[%emt 0:17:51]} 23. Qb2 {[%emt 0:13:55]} a5 {[%emt 0:02:49]} 24. Qxf6 {[%emt 0:05:04]} gxf6 {[%emt 0:00:07]} 25. Rbc1 {[%emt 0:00:30]} a4 {[%emt 0:12:17]} 26. f5 {[%emt 0:11:28]} d4 {[%emt 0:01:10]} 27. fxe6 {[%emt 0:01:52]} Bxe6 {[%emt 0:00:30]} 28. Bf1 {[%emt 0:04:14]} Re7 {[%emt 0:02:25]} (28... Rcc7 {was necessary.}) 29. e3 {[%emt 0:01:59]} Bb3 {[%emt 0:01:35]} (29... dxe3 $142 30. Bxe3 Bb3) 30. Re1 {[%emt 0:00:21]} d3 {[%emt 0:02:15]} 31. Bxd3 {[%emt 0:00:15]} c4 {[%emt 0:00:19]} 32. Bf1 {[%emt 0:04:24]} Rd8 {[%emt 0:01:18]} 33. Re2 {[%emt 0:02:38]} Rd3 {[%emt 0:03:23]} 34. Be1 {[%emt 0:00:40]} Kf7 {[%emt 0:00:49]} 35. Bc3 $18 {[%emt 0:01:27]} Re6 {[%emt 0:01:21]} 36. Bd4 {[%emt 0:01:58]} 1-0

[Event "WWRR IM 2019"]
[Site "Wachtebeke"]
[Date "2019.03.07"]
[Round "9.5"]
[White "Van der Lende, Ilias"]
[Black "De Ruiter, Danny"]
[Result "1-0"]
[ECO "C09"]
[WhiteElo "2343"]
[BlackElo "2328"]
[Annotator "NA"]
[PlyCount "95"]
[EventDate "2019.03.02"]
[EventCountry "BEL"]
[SourceTitle "playchess.com"]
[Source "ChessBase"]
[SourceQuality "1"]
[TimeControl "40/5400+30:900+30"]

1. e4 {[%emt 0:07:36]} c5 {[%emt 0:07:36]} 2. Nf3 {[%emt 0:00:19]} e6 {[%emt 0:00:07]} 3. c3 {[%emt 0:00:06]} d5 {[%emt 0:00:05]} 4. exd5 {[%emt 0:00:06]} exd5 {[%emt 0:00:05]} 5. Bb5+ {[%emt 0:00:13]} Nc6 {[%emt 0:00:07]} 6. O-O {[%emt 0:00:15]} Bd6 {[%emt 0:00:05]} 7. d4 {[%emt 0:00:41]} Nge7 {[%emt 0:00:07]} 8. dxc5 {[%emt 0:01:03]} Bxc5 {[%emt 0:00:07]} 9. Nbd2 {[%emt 0:00:08]} O-O {[%emt 0:00:12]} 10. Nb3 {[%emt 0:00:13]} Bb6 {[%emt 0:01:22]} 11. h3 {[%emt 0:05:53]} Qd6 {[%emt 0:04:00] C09: French Tarrasch: 3...c5 4 exd5 exd5 5 Ngf3 Nc6} 12. Re1 {[%emt 0:04:59]} Ng6 {[%emt 0:07:25]} 13. Be3 {[%emt 0:12:55] [#]} Nf4 $146 {[%emt 0:22:54]} ({Predecessor:} 13... Bf5 14. Bxb6 axb6 15. Bd3 Bxd3 16. Qxd3 f6 17. Nbd4 Nge5 18. Qb5 Nxf3+ 19. Nxf3 {0-1 (88) Cornejo Perales,M (2185)-Gajewski,G (2581) ICC INT 2009}) 14. Bxb6 {[%emt 0:08:35]} ({White should play} 14. Bxf4 $16 Qxf4 15. Qxd5) 14... Qg6 {[%emt 0:00:26]} 15. Bf1 {[%emt 0:19:00]} axb6 {[%emt 0:12:16]} 16. Kh1 {[%emt 0:00:10]} Bd7 {[%emt 0:00:50]} 17. Ne5 {[%emt 0:05:32]} Nxe5 {[%emt 0:00:52]} 18. Rxe5 {[%emt 0:00:06]} Ba4 {[%emt 0:00:06]} 19. Re1 {[%emt 0:05:36]} Rfd8 {[%emt 0:04:54]} 20. Qd2 {[%emt 0:03:44]} Qf6 {[%emt 0:12:52]} 21. Nd4 {[%emt 0:00:37]} Bd7 {[%emt 0:00:41]} 22. a3 {[%emt 0:00:57]} g5 {[%emt 0:02:12]} 23. Qe3 {[%emt 0:03:20]} Re8 {[%emt 0:01:42]} 24. Qg3 {[%emt 0:00:19]} Kh8 {[%emt 0:01:58]} 25. Kg1 {[%emt 0:04:20]} h5 {[%emt 0:03:19]} 26. Re3 {[%emt 0:08:26]} Rg8 {[%emt 0:05:35]} 27. Ne2 {[%emt 0:01:28]} Rg6 {[%emt 0:01:34]} 28. Rf3 {[%emt 0:02:02]} h4 {[%emt 0:02:45]} 29. Qh2 {[%emt 0:00:04]} Nxh3+ {[%emt 0:00:28]} 30. Qxh3 {[%emt 0:01:13]} ({But not} 30. Rxh3 Bxh3 31. Qxh3 (31. gxh3 g4 $14) 31... Qe6) 30... Bxh3 {[%emt 0:00:33]} 31. Rxf6 {[%emt 0:00:04]} Rxf6 {[%emt 0:00:06]} 32. gxh3 {[%emt 0:00:03]} Rg8 {[%emt 0:00:22]} 33. f4 {[%emt 0:02:44]} Kg7 {[%emt 0:04:49]} 34. Rd1 {[%emt 0:00:34]} Rf5 {[%emt 0:00:27]} 35. Kf2 {[%emt 0:00:50]} Kf6 {[%emt 0:00:26]} 36. Rd4 {[%emt 0:01:33]} gxf4 {[%emt 0:00:26]} 37. Rb4 {[%emt 0:01:09]} Re8 {[%emt 0:01:43]} 38. Rxb6+ {[%emt 0:00:40]} Kg5 {[%emt 0:00:01]} 39. Nd4 {[%emt 0:00:20]} Rf6 {[%emt 0:01:34]} 40. Nf3+ {[%emt 0:00:17]} Kg6 {[%emt 0:00:34]} 41. Nxh4+ {[%emt 0:16:06]} Kg7 {[%emt 0:15:56]} 42. Rxb7 {[%emt 0:00:08]} d4 {[%emt 0:00:00]} 43. cxd4 {[%emt 0:00:00]} Rc8 {[%emt 0:00:00]} 44. Bd3 {[%emt 0:00:00]} Rh8 {[%emt 0:00:00]} 45. Nf5+ {[%emt 0:00:00]} Kg6 {[%emt 0:00:00]} 46. Ne7+ {[%emt 0:00:00]} Kg7 $18 {[%emt 0:00:00]} 47. Nd5 {[%emt 0:00:00]} Rd6 {[%emt 0:00:00]} 48. Nxf4 {[%emt 0:00:00]} 1-0